{"text_format":"1","workbook":"xlsx","n_sheets":6,"sheets":["Инвентарный номер ПервыйЭтап","Свод смет 2 этап","Смета_№1","Смета_№2","Акт","Сводный акт списания МТР"],"not_rendered":{"charts":0,"images":0,"macros":1,"external_links":0,"defined_names":5,"comments":0,"pivot_tables":0},"unopened":[],"bounds":{"document_bytes":16777216,"sheet_cells":100000,"rows_first":2000,"rows_last":500,"rows_between":2000,"halvings":0,"cell_chars":16384,"cell_head_chars":4096},"cells_cut":0,"cells_raw":0,"read":"whole","date_system":"1900"}

{"sheet":"Инвентарный номер ПервыйЭтап","index":0,"n_rows":8,"n_cols":11,"rows_kept":8,"cut":false,"hidden":false,"merged":[]}
[0.79379629629693227,"Наименование","НаименованиеПолное","ГруппаОС","Комментарий","ТехническоеМесто","ТехническиеХарактеристики","МОЛ","ГЕМ",null,"1-ый этап. Высвечивается две кнопки \"Выбор инвентарного номера\" и \"Завершить ввод\" (4-ый этап), при этом последняя кнопка присутствует на каждом листе книги"]
["065455","Автобус  ASIA АМ818 COSMOS","Автобус  ASIA АМ818 COSMOS","Транспортные средства","Автобус  ASIA АМ818 COSMOS",825,"Автобус  ASIA АМ818 COSMOS","Иваныч","СлужГЕМ",null,"Необходимо чтобы с помощью кнопки \"Выбор Инвентарного номера ремонтируемого оборудования\" производился отбор одного инвентарного номера "]
["065456","Автобус  KIA PREGIO","Автобус  KIA PREGIO","Транспортные средства","Автобус  KIA PREGIO",825,"Автобус  KIA PREGIO","Иваныч","СлужГЕМ",null,"и после нажатия данной кнопки, в листе \"Акт\", добавляется новая строка в Разделе \"Трудовые затраты\" с выбранным в этом листе номером в соответствующей графе (3а) Акта"]
["065463","Автобус  ЛиАЗ 525653","Автобус  ЛиАЗ 525653","Транспортные средства","Автобус  ЛиАЗ 525653, цвет кузова белый, зеленый, гос. № Т503КВ",825,"Автобус  ЛиАЗ 525653, цвет кузова белый, зеленый, гос. № Т503КВ","Иваныч","СлужГЕМ"]
["065464","Автобус  ЛиАЗ 525653","Автобус  ЛиАЗ 525653","Транспортные средства","Автобус  ЛиАЗ 525653, цвет кузова белый, зеленый, гос. № Т504КВ",825,"Автобус  ЛиАЗ 525653, цвет кузова белый, зеленый, гос. № Т504КВ","Иваныч","СлужГЕМ"]
["065465","Автобус  ЛиАЗ 525653","Автобус  ЛиАЗ 525653","Транспортные средства","Автобус  ЛиАЗ 525653, цвет кузова белый, зеленый, гос. № Т505КВ",825,"Автобус  ЛиАЗ 525653, цвет кузова белый, зеленый, гос. № Т505КВ","Иваныч","СлужГЕМ"]
["065470","Автобус  ЛиАЗ 525653","Автобус  ЛиАЗ 525653","Транспортные средства","Автобус  ЛиАЗ 525653, Идентификационный номер (VIN) XTY525653B0023847, двигатель Cummins 6ISBe245B 87175787, цвет белый-зеленый, мощность двигателя 245",825,"Автобус  ЛиАЗ 525653, Идентификационный номер (VIN) XTY525653B0023847, двигатель Cummins 6ISBe245B 87175787, цвет белый-зеленый, мощность двигателя 245","Иваныч","СлужГЕМ"]
["065450","Автобус  ЛИАЗ-667","Автобус  ЛИАЗ-667","Транспортные средства","Автобус  ЛИАЗ-667",825,"Автобус  ЛИАЗ-667","Иваныч","СлужГЕМ"]

{"sheet":"Свод смет 2 этап","index":1,"n_rows":4,"n_cols":4,"rows_kept":4,"cut":false,"hidden":false,"merged":[[0,0,0,1]]}
["Свод смет",null,null,"После выбора инвентарного номера, автоматически высвечивается сообщение: \"Выбор сметы!\" И становится активным данный лист (либо окно со списком смет, либо можно создать выпадающий список в Акте в графе 2). Где по аналагичному алгоритму 1-го этапа, производится уже выбор Сметы (нужно создать КНОПКУ либо ОКНО со списком смет). Номер сметы проставляется , в графе 2 Акта, в той же вновь созданной строке (без добавления новой строки), где занесен выбранный по 1-му этапу инвентарный номер"]
["№ сметы","Наименование",null,"После выбора номера сметы становится активным лист соответствующей сметы (Сметы_№1 либо Смета №2)"]
["Смета_№1"]
["Смета_№2"]

{"sheet":"Смета_№1","index":2,"n_rows":86,"n_cols":12,"rows_kept":86,"cut":false,"hidden":false,"merged":[[2,9,3,9],[0,11,0,14]]}
["СМЕТА №1",null,null,null,null,null,null,null,null,"После выбора номера данного ЛИСТА становится активным лист (Сметы_№1) - 2-ой этап",null,"аналагично Смете №2"]
["планируемых работ по техническому обслуживанию ТВО в  2013 г.",null,null,null,null,null,null,null,null,"Здесь по тому же алгоритму выбирается позиция сметы с автоматическим вводом значений выбранной позиции ( гр.1, 3, 4, 5, 7) по соответствующим графам в Акте, КРОМЕ ввода объема выполненных работ (гр 6), для которого высвечивается ОКНО ввода значений, либо ввод значений производится непосредственно в Акте, НО ОБЯЗАТЕЛЬНО после ввода становится активным ВНОВЬ этот лист - 3-ий этап"]
[null,null,null,null,null,null,null,null,null,"По 3-му этапу, алгоритм остается прежним КРОМЕ ТОГО, ЧТО: 1) Выбираются МАТЕРИАЛЫ; 2) значения Сметы отражаются в Разделе \"Материальные затраты\"; 3) При этом ввод значений производится каждый раз в новой строке Акта"]
["Номер позиции сметы","Шифр затрат","Наименование работ","Обоснование цены","Ед-ца\nизмер.","Объем выполненных работ/ количество","трудоемкость на ед., чел./час","трудоемкость на ед., чел./час"]
["1","2",3,4,5,6,7,8,null,"4-ый этап - кнопка \"Завершить ввод\", которая завершает ввод позиций сметы и возвращает в лист \"Инвентарный номер\""]
["Раздел 1.    ТО маслосистем турбоагрегатов"]
[1,null,"Ремонт фильтров ГМБ","БЦ2-011307-0102","компл",1,1405,{"$f":"F7*G7","v":1405}]
[2,null,"Замена сетки фильтра ГМБ с ее изготовлением","БЦ2-011308-0102","шт",1,1354,{"$f":"F8*G8","v":1354}]
[3,null,"Снятие (установка) крышек маслоочистительной установки, осмотр, очистка узлов ПСМ1-3000","БЦ2-011310-0101","установка",1,3513,3513]
[4,null,"Ремонт фильтр-пресса","БЦ2-011311-0101","шт",1,702,702]
[5,null,"Ремонт фильтров МНУГ","БЦ2-011307-0101","компл",4,571,{"$f":"F11*G11","v":2284}]
[6,null,"Продувка сеток ГМБ","БЦ14-010303-0101      Доп. 1","сетка",4,11,{"$f":"F12*G12","v":44}]
[7,null,"Ремонт поплавка ГМБ","БЦ2-011305-0101","шт",1,1230,{"$f":"F13*G13","v":1230}]
[8,null,"Ремонт маслоуказателя ГМБ","БЦ2-011306-0101","шт",1,1186,{"$f":"F14*G14","v":1186}]
[9,null,"Ремонт эксгаустера с проверкой состояния подшипников и зазоров между крыльчаткой и кожухом","БЦ2-011304-0101","шт",1,2811,{"$f":"F15*G15","v":2811}]
[null,null,"Итого по маслосистемам :",null,null,null,null,{"$f":"SUM(H7:H15)","v":14529}]
[null,null,"Поправочный коэффициент с учетом вредности :",1.4590000000000001,null,null,null,{"$f":"H16*D17","v":21197.811000000002}]
["Раздел 2.    ТО вакуумных систем турбоагрегатов"]
[{"$f":"+A15+1","v":10},null,"Устранение присосов в вакуумную систему методом наложения шва электросваркой","БЦ1-070101-0201","пм шва",3,95,285]
[null,null,"Итого по вакуумным системам :",null,null,null,null,{"$f":"H19","v":285}]
[null,null,"Поправочный коэффициент с учетом вредности :",1.6160000000000001,null,null,null,{"$f":"H20*D21","v":460.56}]
["Раздел 3.    ТО арматуры вакуумных систем турбоагрегатов"]
[{"$f":"+A19+1","v":11},null,"Замена набивки сальниковых уплотнений арматуры вакуумной системы : ДУ  20мм","БЦ3-030601-0101","шт",8,71,568]
[{"$f":"+A23+1","v":12},null,"Замена набивки сальниковых уплотнений арматуры вакуумной системы: ДУ  50мм","БЦ3-030601-0201","шт",8,100,800]
[{"$f":"+A24+1","v":13},null,"Замена набивки сальниковых уплотнений арматуры вакуумной системы: ДУ  100мм","БЦ3-030601-0301","шт",6,128,768]
[{"$f":"+A25+1","v":14},null,"Замена набивки сальниковых уплотнений арматуры вакуумной системы: ДУ 150мм","БЦ3-030601-0401","шт",6,171,1026]
[{"$f":"+A26+1","v":15},null,"Замена набивки сальниковых уплотнений арматуры вакуумной системы: ДУ свыше 250мм","БЦ3-030601-0501","шт",4,213,852]
[{"$f":"+A27+1","v":16},null,"Замена стекол водоуказательных приборов ПВД, ПНД, ПС-50, ПН-100, конденсаторов турбины, БНТ, гидрозатворов, в вакуумном бачке на месте установки: 2 шт.","БЦ3-020202-0102","шт",4,850,3400]
[null,null,"Итого по арматуре :",null,null,null,null,{"$f":"SUM(H23:H28)","v":7414}]
[null,null,"Поправочный коэффициент с учетом вредности :",1.6160000000000001,null,null,null,{"$f":"H29*D30","v":11981.024000000001}]
[null,null,"Итого по разделам 1-3 :",null,null,null,null,{"$f":"H17++H21+H30","v":33639.395000000004}]
[null,null,"33639.4*6*12*0,67",null,null,null,null,{"$f":"H31*12*0.67","v":270460.73580000002}]
[null,null,"Итого по смете:",null,null,null,null,{"$f":"+H32","v":270460.73580000002}]
[null,null,"Материалы на ремонт для освоения хозяйственным способом:"]
[1,null,"Болт","М8х40","кг",0.33333333333333331,75,900]
[2,null,"Болт","М10х60","кг",0.5,75,1350]
[3,null,"Болт","М12х60","кг",1.3333333333333333,75,1800]
[4,null,"Гайка","М8","кг",4.9999999999999996E-2,75,135]
[5,null,"Гайка","М10","кг",6.6666666666666666E-2,75,180]
[6,null,"Гайка","М12","кг",0.13333333333333333,75,225]
[7,null,"Герметик","силиконовый","кг",0.79999999999999993,420,{"$f":"F41*G41","v":336}]
[8,null,"Графит","чешуйчатый","кг",0.5,500,250]
[9,null,"Жидкость промывоч.","керосин","кг",5,26,130]
[10,null,"Круг отрезной","180х3х32","шт",1,150,150]
[11,null,"Круг шлиф.","АПП 150х20х32","шт",1,120,120]
[12,null,"Набивка сальниковая","АП 8х8","кг",3,170,510]
[13,null,"Набивка сальниковая","АП 10х10","кг",4,170,680]
[14,null,"Набивка сальниковая","АП 12х12","кг",5,170,850]
[15,null,"Набивка сальниковая","АП 14х14","кг",6,170,1020]
[16,null,"Набивка сальниковая","АП 16х16","кг",7,170,1190]
[17,null,"Паронит","ПМБ  δ=1.5","кг",4,130,520]
[18,null,"Паронит","ПМБ  δ=2","кг",5,130,650]
[19,null,"Паронит","ПМБ  δ=3","кг",6,130,780]
[20,null,"Паронит","ПОН-Б  δ=1","кг",4,120,480]
[21,null,"Паронит","ПОН-Б  δ=2","кг",5,120,600]
[22,null,"Паронит","ПОН-Б  δ=3","кг",6,120,720]
[23,null,"Паронит","ПОН-Б  δ=4","кг",7,120,840]
[24,null,"Полотно ножовочное",null,"шт",30,15,450]
[25,null,"Припой","ПОС-60","кг",0.19999999999999998,350,70]
[26,null,"Пропан",null,"кг",2,23,46]
[27,null,"Резина лист","2Н-1С-МБС-2","кг",5.333333333333333,100,533.33333333333326]
[28,null,"Резина лист","2Н-1С-МБС-3","кг",5.833333333333333,100,583.33333333333326]
[29,null,"Резина лист","2Н-1С-МБС-4","кг",6.166666666666667,100,616.66666666666674]
[30,null,"Резина лист","2Н-1С-МБС-5","кг",6.666666666666667,100,666.66666666666674]
[31,null,"Резина лист","2Н-1С-МБС-6","кг",7,100,700]
[32,null,"Салфетка техническая",null,"шт",30,31,930]
[33,null,"Сетка латунная","0,6 х 0,6","м2",0.83333333333333337,280,233.33333333333334]
[34,null,"Сетка латунная","0,25 х 0,25","м2",0.83333333333333337,280,233.33333333333334]
[35,null,"Слюда пластина",null,"шт",300,3,900]
[36,null,"Смазка консистентная","Солидол-С","кг",3,46,138]
[37,null,"Смазка консистентная","Циатим-201","кг",3,56,168]
[38,null,"Трубка стекляная","кварц.  Ø=12","м",10,75,750]
[39,null,"Трубка стекляная","кварц.  Ø=16","м",10,75,750]
[40,null,"Шкурка шлиф.","№0-5","м2",3.3333333333333335,95,316.66666666666669]
[41,null,"Ветошь",null,"м",6.666666666666667,35,{"$f":"F75*G75","v":233.33333333333334}]
[42,null,"Электроды","УОНИ-13/55  Ø4","кг",8.3333333333333339,75,625]
[null,null,"Итого материалам на ремонт для освоения хозяйственным способом:",null,null,null,null,{"$f":"SUM(H35:H76)","v":23359.666666666668}]
[null,null,"Итого по материалам :",null,null,null,null,{"$f":"H77","v":23359.666666666668}]
[null,null,"Всего :",null,null,null,null,{"$f":"H33+H78","v":293820.40246666671}]
[null,null,"НДС 18%:",null,null,null,null,{"$f":"H79*0.18","v":52887.672444000003}]
[null,null,"ВСЕГО с НДС:",null,null,null,null,{"$f":"SUM(H79:H80)","v":346708.07491066674}]
[null,null,"Справочно:"]
[null,null,"Стоимость услуг подрядных организаций по ремонту оборудования всего:",null,null,null,null,0]
[null,null,"Стоимость работ хозяйственным способом",null,null,null,null,{"$f":"H33","v":270460.73580000002}]
[null,null,"Давальческие материалы для освоения подрядным способом",null,null,null,null,0]
[null,null,"Материалы на ремонт для освоения хозяйственным способом",null,null,null,null,{"$f":"H77","v":23359.666666666668}]

{"sheet":"Смета_№2","index":3,"n_rows":83,"n_cols":12,"rows_kept":83,"cut":false,"hidden":false,"merged":[[0,11,0,14],[0,0,0,7],[1,0,1,7],[2,3,2,4],[2,9,3,9]]}
["СМЕТА № 2",null,null,null,null,null,null,null,null,"После выбора номера данного ЛИСТА становится активным лист (Сметы_№2) - 2-ой этап",null,"аналагично Смете №1"]
["планируемых работ по среднему и текущему ремонту кислородно-компрессорного оборудования в 2013 г.",null,null,null,null,null,null,null,null,"Здесь по тому же алгоритму выбирается позиция сметы с автоматическим вводом значений выбранной позиции ( гр.1, 3, 4, 5, 7) по соответствующим графам в Акте, КРОМЕ ввода объема выполненных работ (гр 6), для которого высвечивается ОКНО ввода значений, либо ввод значений производится непосредственно в Акте, НО ОБЯЗАТЕЛЬНО после ввода становится активным ВНОВЬ этот лист - 3-ий этап"]
[null,null,"                                                                (вид ремонта)","(наименование оборудования)",null,null,null,null,null,"По 3-му этапу, алгоритм остается прежним КРОМЕ ТОГО, ЧТО: 1) Выбираются МАТЕРИАЛЫ; 2) значения Сметы отражаются в Разделе \"Материальные затраты\"; 3) При этом ввод значений производится каждый раз в новой строке Акта"]
["№ п/п","Шифр затрат","Наименование работ","Обоснование цены","Ед-ца\nизмер.","Кол-во","Ст-ть ед., руб.","Стоимость всего, руб."]
["1","2",3,4,5,6,7,8,null,"4-ый этап - кнопка \"Завершить ввод\", которая завершает ввод позиций сметы и возвращает в лист \"Инвентарный номер\""]
["Раздел 1.     Средний ремонт  кислородно-компрессорного оборудования"]
[1,null,"Ремонт компрессоров горизонтальных: типа 3Г-50/200 (2ВМ2,5-5/220)","БЦ18-010501-0401 ","компр.",2,76757,{"$f":"F7*G7*0.8","v":122811.20000000001}]
[2,null,"Ремонт компрессоров вертикальных угловых двухрядных крейцкопфных: типа ВП-30/8, 205ВП-30/8, 205ГП-30/8, 305ВП-30/8","БЦ18-010201-1501 ","компр.",2,49093,{"$f":"F8*G8*0.8","v":78548.800000000003}]
[3,null,"Ремонт компрессоров горизонтальных: типа 5Г-100/8(2ВМ10-63/8)","БЦ18-010501-0801 ","компр.",1,95726,{"$f":"F9*G9*0.8","v":76580.800000000003}]
[null,null,"Итого:",null,null,null,null,{"$f":"SUM(H7:H9)","v":277940.8}]
[null,null,"Поправочный коэффициент с учетом вредности :",1.462,null,null,null,{"$f":"H10*D11","v":406349.44959999999}]
["Раздел 2.     Текущий ремонт  кислородно-комрессорного оборудования"]
[{"$f":"+A9+1","v":4},null,"Ремонт компрессоров горизонтальных: типа 3Г-50/200(2ВМ2,5-5/220)","БЦ18-010501-0401 ","компр.",4,76757,{"$f":"F13*G13*0.6","v":184216.8}]
[{"$f":"+A13+1","v":5},null,"Ремонт компрессоров вертикальных угловых двухрядных крейцкопфных: типа ВП-30/8, 205ВП-30/8, 205ГП-30/8, 305ВП-30/8","БЦ18-010201-1501 ","компр.",4,49093,{"$f":"F14*G14*0.6","v":117823.2}]
[{"$f":"+A14+1","v":6},null,"Ремонт компрессоров горизонтальных: типа 5Г-100/8(2ВМ10-63/8)","БЦ18-010501-0801 ","компр.",2,95726,{"$f":"F15*G15*0.4","v":76580.800000000003}]
[7,null,"Ремонт блока очистки воздуха: тип установки КЖКАЖ-0,25","БЦ18-030101-0102 ","шт",2,50103,40082.400000000001]
[8,null,"Ремонт блока разделения воздуха: тип установки КЖКАЖ-0,25","БЦ18-030101-0202 ","шт",2,71048,{"$f":"F17*G17*0.41","v":58259.359999999993}]
[9,null,"Ремонт турбодетандера: тип установки КЖКАЖ-0,25","БЦ18-030101-0302 ","шт",5,11065,{"$f":"F18*G18*0.400199","v":22141.009675000001}]
[10,null,"Ремонт насоса сжиженого газа: тип установки КЖКАЖ-0,25","БЦ18-030101-0502 ","шт",5,15282,{"$f":"F19*G19*0.4","v":30564}]
[11,null,"Ремонт холодильной машины (блок охлаждения воздуха): тип установки КЖКАЖ-0,25","БЦ18-030101-0602 ","шт",4,18837,30139.200000000001]
[12,null,"Ремонт компрессоров V-образных типа ВШВ 3/100 (АКА-150СВ)","БЦ18-010301-1301  ","шт",6,39254,94209.600000000006]
[null,null,"Итого:",null,null,null,null,{"$f":"SUM(H13:H21)","v":654016.36967499985}]
[null,null,"Поправочный коэффициент с учетом вредности :",1.462,null,null,null,{"$f":"H22*D23","v":956171.93246484979}]
[null,null,"Итого по разделам 1-2 :",null,null,null,null,{"$f":"H11+H23","v":1362521.3820648498}]
[null,null,"Итого по смете:",null,null,null,null,{"$f":"H24","v":1362521.3820648498}]
[null,null,"Материалы на ремонт для освоения хозяйственным способом:"]
[1,null,"Насос  житкого кислорода","22НСГ0,025/20","шт",0,18500,{"$f":"F27*G27","v":0}]
[3,null,"Клапан I ступени","ПИК-125-1,0Б","шт",6,2695,16170]
[4,null,"Клапан II ступени","ПИК-125-1,0Б","шт",2,2695,5390]
[5,null,"Клапан прямоточный I ступени","ПИК 165-2,5А","шт",6,3000,18000]
[6,null,"Клапан прямоточный II ступени","ПИК 150-2,5А","шт",8,2000,16000]
[7,null,"Клапан вентиля кисл. баллона ","ВК-94-01","шт",50,88.98,4449]
[8,null,"Муфта вентиля кисл.баллона","ВК-94-01","шт",30,39,1170]
[9,null,"Вкладыш шатун.подш.","ВК-108,01","шт",4,3000,12000]
[10,null,"Вкладыш шатун.подш.","ВК-108,02","шт",4,3000,12000]
[11,null,"Втулка","капролактанØ50","шт",5,150,750]
[16,null,"Экспандер","КК2367.01.013-01","шт",4,320,1280]
[17,null,"Указатель жидкого кислорода и азота","УЖК-5","шт",2,8000,16000]
[18,null,"Ось крейцкопфа","ИГШП715671.002","шт",2,1348,2696]
[19,null,"Палец крейцкопфа","205/305П-3-1СБ","шт",4,3279,13116]
[20,null,"Палец","КК2371.02.043","шт",1,3114,3114]
[21,null,"Палец","КК2375.02.011","шт",1,522,522]
[22,null,"Уплотняющие резиновые кольца гильзы цилиндра I ст.","350-360-58-2-2","шт",8,270.32,2162.56]
[23,null,"Уплотняющие резиновые кольца гильзы цилиндра II ст.","220-230-58-2-2","шт",8,230,1840]
[24,null,"Уплотняющие резин. кольца гильзы цилиндра IV ст.","110-116-36-2-2","шт",18,60,1080]
[25,null,"Уплотняющие резин. кольца гильзы цилиндра IV ст.","125-130-36-2-2","шт",18,100,1800]
[26,null,"Уплотняющие резин. кольца гильзы цилиндра IV ст.","210-220-58-2-2","шт",18,230,4140]
[28,null,"Кольцо","КК2367.01.014-01","шт",14,534,7476]
[29,null,"Кольцо резиновое","ГК-0,17/45М 304-150-1-14-1","шт",2,267,534]
[30,null,"Кольцо поршневое","КК2367.01.012-01","шт",15,484,7260]
[31,null,"Ремень","Б-2000Ш","шт",2,200,400]
[32,null,"Ремень клиновой","сеч.А 8,5х8х1250","шт",4,100,400]
[33,null,"Уплотнение (прокладка)","фторопласт Ø30","шт",60,35,2100]
[34,null,"Мембрана из резины","71-8А-1-20","шт",2,200,400]
[36,null,"Штуцер бронзовый","БрОФ6,5-0,15 Ø30","шт",20,220,4400]
[37,null,"Гайка бронзовая","БрОФ7-0,2 Ø50","шт",20,35,700]
[38,null,"Герметик","силиконовый","кг",1.2,320,384]
[39,null,"Паронит","ПМБ δ=2","кг",35,112,3920]
[40,null,"Паронит","ПМБ δ=3","кг",36,112,4032]
[41,null,"Резина лист","2Н-1С-МБС-2","кг",8,85,680]
[42,null,"Резина лист","2Н-1С-МБС-3","кг",10,105,1050]
[43,null,"Песок перлитовый","75-100","кг",50,320,16000]
[44,null,"Резина лист","ТМКЩ-40мм","кг",10,100,1000]
[45,null,"Поршень 3 ступени ","ИГШП72.3595018-01","шт",1,12000,12000]
[46,null,"Баббит","Б-83","кг",48,950,45600]
[47,null,"Станция публикатор УХЛ 4","Гост 3564-84 31-04-2","шт",2,20000,40000]
[48,null,"Поршень 4 ступени ","ИГШП72.3595.019-02","шт",1,10000,10000]
[49,null,"Поршень 5 ступени ","ИГШП30.6571.018","шт",1,12000,12000]
[50,null,"Поршневое кольцо 1 ступени","У330х8","шт",4,1000,4000]
[51,null,"Поршневое кольцо 1 ступени","У470","шт",4,3000,12000]
[52,null,"Пруток медный ","Ø80мм","кг",17,300,5100]
[53,null,"Трубка медная ","8х1мм","кг",15,107.7,1615.5]
[54,null,"Подшипник",4024113,"шт",4,400,1600]
[55,null,"Насос  (публикатор)","22-8-ухл4 ост 2Г23-2-87","шт",1,15000,15000]
[null,null,"Итого по  материалам на ремонт для освоения хозяйственным способом:",null,null,null,null,{"$f":"SUM(H27:H74)","v":343331.06}]
[null,null,"Всего:",null,null,null,null,{"$f":"H25+H75","v":1705852.4420648499}]
[null,null,"НДС 18%:",null,null,null,null,{"$f":"H76*0.18","v":307053.43957167299}]
[null,null,"ВСЕГО с НДС:",null,null,null,null,{"$f":"H76+H77","v":2012905.8816365229}]
[null,null,"Справочно:"]
[null,null,"Стоимость услуг подрядных организаций по ремонту оборудования всего:",null,null,null,null,0]
[null,null,"Стоимость работ хозяйственным способом",null,null,null,null,{"$f":"H25","v":1362521.3820648498}]
[null,null,"Давальческие материалы для освоения подрядным способом",null,null,null,null,0]
[null,null,"Материалы на ремонт для освоения хозяйственным способом",null,null,null,null,{"$f":"H75","v":343331.06}]

{"sheet":"Акт","index":4,"n_rows":67,"n_cols":16,"rows_kept":67,"cut":false,"hidden":false,"merged":[[28,12,29,15],[30,0,30,1],[31,0,31,1],[32,0,32,1],[33,0,33,1],[34,0,34,1],[42,10,43,10],[7,3,7,8],[9,3,9,8],[13,3,13,8],[41,0,41,10],[42,0,42,3],[28,4,29,4],[42,4,43,4],[28,5,29,5],[42,7,43,7],[42,5,43,5],[20,5,21,5],[20,6,21,6],[38,0,38,1],[42,6,43,6],[42,9,43,9],[42,8,43,8],[5,3,5,8],[11,3,11,8],[29,0,29,1],[28,0,28,3],[28,6,29,6],[28,7,29,7],[28,8,29,8],[27,0,27,10],[4,10,5,10],[37,0,37,1],[35,0,35,1],[36,0,36,1],[6,10,7,10],[8,10,9,10],[10,10,11,10],[12,10,13,10],[28,9,29,9],[28,10,29,10],[14,10,15,10]]}
[]
[]
[null,null,null,null,null,null,null,null,null,null,"Код"]
[null,null,null,null,null,null,null,null,null,"Форма по ОКУД "]
[]
[null,"Инвестор",null,"ОАО \"ИНТЕР РАО\", г. Москва",null,null,null,null,null,"по ОКПО "]
[]
[null,"Заказчик (Генподрядчик)",null,"ОАО \"ИНТЕР РАО\", г. Москва",null,null,null,null,null,"по ОКПО "]
[]
[null,"Подрядчик (Субподрядчик)",null,null,null,null,null,null,null,"по ОКПО "]
[]
[null,"Стройка"]
[]
[null,"Объект"]
[]
[null,null,null,null,null,null,null,null,null,"Вид деятельности по ОКДП "]
[null,null,null,null,null,null,null,null,null,"номер "]
[null,null,null,null,null,null,null,null,null,"дата "]
[null,null,null,null,null,null,null,null,null,"Вид операции"]
[]
[null,null,null,null,null,"Номер документа","Дата составления",null,"Отчетный период"]
[null,null,null,null,null,null,null,null,"с","по"]
[null,null,null,null,null,null,null,null,null,{"$f":"+G23","v":0}]
[null,null,null,null,"О ПРИЕМКЕ РАБОТ, ВЫПОЛНЕННЫХ ХОЗЯЙСТВЕННЫМ СПОСОБОМ*"]
[]
[null,null,null,null,null,"Сметная стоимость",null,null,null,null,"руб."]
[]
["Трудовые затраты"]
["Номер",null,null,null,"Наименование работ","Инвентарный номер","Номер единичной расценки","Единица измерения","объем выполненных работ","трудоемкость на ед., чел./час","трудоемкость на ед., чел./час"]
["по\nпорядку",null,"сметы","позиции сметы"]
[1,null,2,"2а",3,"3а",4,5,6,7,8]
[1,null,"Смета_№1",5,{"$f":"OFFSET(INDIRECT($C32&\"!a6\"),MATCH($D32,INDIRECT($C32&\"р\"),0)-1,2)","v":"Ремонт фильтров МНУГ"},{"$f":"'Инвентарный номер ПервыйЭтап'!A2","v":"065455"},{"$f":"OFFSET(INDIRECT($C32&\"!a6\"),MATCH($D32,INDIRECT($C32&\"р\"),0)-1,3)","v":"БЦ2-011307-0101"},{"$f":"OFFSET(INDIRECT($C32&\"!a6\"),MATCH($D32,INDIRECT($C32&\"р\"),0)-1,4)","v":"компл"},null,{"$f":"OFFSET(INDIRECT($C32&\"!a6\"),MATCH($D32,INDIRECT($C32&\"р\"),0)-1,6)","v":571},{"$f":"+I32*J32","v":0},"1 этап","Добавить строку","Выбор инвентарного номера","Выбор позиции сметы","Ввод объема"]
["1",null,"Смета_№1",1,{"$f":"OFFSET(INDIRECT($C33&\"!a6\"),MATCH($D33,INDIRECT($C33&\"р\"),0)-1,2)","v":"Ремонт фильтров ГМБ"},{"$f":"+'Инвентарный номер ПервыйЭтап'!A3","v":"065456"},{"$f":"OFFSET(INDIRECT($C33&\"!a6\"),MATCH($D33,INDIRECT($C33&\"р\"),0)-1,3)","v":"БЦ2-011307-0102"},{"$f":"OFFSET(INDIRECT($C33&\"!a6\"),MATCH($D33,INDIRECT($C33&\"р\"),0)-1,4)","v":"компл"},null,{"$f":"OFFSET(INDIRECT($C33&\"!a6\"),MATCH($D33,INDIRECT($C33&\"р\"),0)-1,6)","v":1405},{"$f":"+I33*J33","v":0}]
["1",null,"Смета_№1",1,{"$f":"OFFSET(INDIRECT($C34&\"!a6\"),MATCH($D34,INDIRECT($C34&\"р\"),0)-1,2)","v":"Ремонт фильтров ГМБ"},{"$f":"+'Инвентарный номер ПервыйЭтап'!A4","v":"065463"},{"$f":"OFFSET(INDIRECT($C34&\"!a6\"),MATCH($D34,INDIRECT($C34&\"р\"),0)-1,3)","v":"БЦ2-011307-0102"},{"$f":"OFFSET(INDIRECT($C34&\"!a6\"),MATCH($D34,INDIRECT($C34&\"р\"),0)-1,4)","v":"компл"},null,{"$f":"OFFSET(INDIRECT($C34&\"!a6\"),MATCH($D34,INDIRECT($C34&\"р\"),0)-1,6)","v":1405},0]
["1",null,"Смета_№1",1,{"$f":"OFFSET(INDIRECT($C35&\"!a6\"),MATCH($D35,INDIRECT($C35&\"р\"),0)-1,2)","v":"Ремонт фильтров ГМБ"},{"$f":"+'Инвентарный номер ПервыйЭтап'!A5","v":"065464"},{"$f":"OFFSET(INDIRECT($C35&\"!a6\"),MATCH($D35,INDIRECT($C35&\"р\"),0)-1,3)","v":"БЦ2-011307-0102"},{"$f":"OFFSET(INDIRECT($C35&\"!a6\"),MATCH($D35,INDIRECT($C35&\"р\"),0)-1,4)","v":"компл"},null,{"$f":"OFFSET(INDIRECT($C35&\"!a6\"),MATCH($D35,INDIRECT($C35&\"р\"),0)-1,6)","v":1405},0]
[null,null,null,null,null,null,null,null,null,null,{"$f":"+I36*J36","v":0}]
[null,null,null,null,null,null,null,null,null,null,{"$f":"+I37*J37","v":0}]
[null,null,null,null,null,null,null,null,null,null,{"$f":"+I38*J38","v":0}]
[null,null,null,null,null,null,null,null,null,null,0]
[null,null,null,null,null,null,null,"Итого","Х","Х",{"$f":"SUM(K32:K39)","v":0}]
[]
["Материальные затраты"]
["Номер",null,null,null,"Наименование материалов","Инвентарный номер","Номер единичной расценки","Единица измерения","количество","цена за единицу, руб.","стоимость, руб."]
["по\nпорядку","работы по смете","сметы","позиции сметы"]
[1,"1а",2,"2а",3,"3а",4,5,6,7,8]
["1",{"$f":"+A32","v":1},{"$f":"+C32","v":"Смета_№1"},42,{"$f":"OFFSET(INDIRECT($C46&\"!a6\"),MATCH($D46,INDIRECT($C46&\"м\"),0)-1,2)","v":"Набивка сальниковая"},{"$f":"+F32","v":"065455"},{"$f":"OFFSET(INDIRECT($C46&\"!a6\"),MATCH($D46,INDIRECT($C46&\"м\"),0)-1,3)","v":"АП 10х10"},{"$f":"OFFSET(INDIRECT($C46&\"!a6\"),MATCH($D46,INDIRECT($C46&\"м\"),0)-1,4)","v":"кг"},null,{"$f":"OFFSET(INDIRECT($C46&\"!a6\"),MATCH($D46,INDIRECT($C46&\"м\"),0)-1,6)","v":170},{"$f":"+I46*J46","v":0}]
[]
[]
[]
[]
[]
[null,null,null,null,null,null,null,null,null,null,{"$f":"+J52*I52","v":0}]
[null,null,null,null,null,null,null,"Итого","Х","Х",{"$f":"SUM(K46:K52)","v":0}]
[]
[]
[null,null,"Сдал"]
[null,null,null,null,"(должность)","(расшифровка подписи)"]
[]
[]
[]
[null,null,"Принял"]
[null,null,null,null,"(должность)","(расшифровка подписи)"]
[]
[]
["\n"]
[null,"Сводная таблица"]
[null,"Инв. №","ГЕМ","ТМ","Трудозатраты","Материалы"]

{"sheet":"Сводный акт списания МТР","index":5,"n_rows":12,"n_cols":11,"rows_kept":12,"cut":false,"hidden":false,"merged":[[6,0,6,1],[7,0,7,1],[8,0,8,1],[1,0,1,8],[9,0,9,1],[10,0,10,1],[0,0,0,8],[4,10,5,14],[2,0,2,1],[3,0,3,1],[4,0,4,1],[5,0,5,1]]}
["Свод по переченю материалов из Акта"]
["Материальные затраты"]
["Номер по\nпорядку",null,"Наименование материалов","Инвентарный номер","Номер единичной расценки","Единица измерения","количество","цена за единицу, руб.","стоимость, руб."]
[1,null,3,"3а",4,5,6,7,8]
[null,null,null,null,null,null,null,null,null,null,"Материалы группируются по двум признакам:    1) Наименование; 2) Инвентарный номер."]
[]
[]
[]
[]
[]
[]
[null,null,null,null,null,"Итого","Х","Х",{"$f":"SUM(I5:I11)","v":0}]